Cogmind - Beta 10.1 @@@ ROGUE MODE // 2020.09.29 @ 11:44:18 // Winter2019/RPGLIKE Player: Hermelin Result: Destroyed by G-50 Soldier with Heavy Laser Performance ------------- Evolutions (4) 2000 Regions Visited (15) 3000 Robots Destroyed (270) 1350 Value Destroyed (9296) 9296 Prototype IDs (45) 900 Alien Tech Used (0) 0 Bonus (4897) 4897 TOTAL SCORE: 21443 Bonus ------- High Alert Combat Kills 1986 Follower Combat Kills 2323 Aligned with FarCom 300 Met Zhirov 300 A7 Reached Mainframe 300 Met R17 at Cetus 500 Read Decrypted Archives 300 Friendly Fire -1112 Cogmind --------- Core Integrity 0/1000 Matter 300/300 Energy 1080/1100 System Corruption 0% Temperature Cool (6) Movement Immobile (Siege) Ox1 Location -6/Hub_04(d) Parts ------- > --- POWER (4) -------- Quantum Reactor Quantum Reactor Quantum Reactor Quantum Reactor > --- PROPULSION (4) --- Centrium Heavy Treads Potential Leg Potential Leg > --- UTILITY (11) ----- Advanced Cooling System Advanced Cooling System Long-range Terrain Scanner Core Analyzer Armor Integrity Analyzer Improved Transmission Jammer Improved Shield Generator Advanced Hacking Suite Long-range Tractor Beam > --- WEAPON (4) ------- Enhanced Autogun Enhanced Autogun Enhanced Autogun > --- INVENTORY (6) ---- Advanced Energy Well (800) System Backup Module Improved Field Recycling Unit (0) Advanced Variable Charge Gun Rocket Array Peak State ------------ > --- POWER ------------ Quantum Reactor Quantum Reactor Quantum Reactor Quantum Reactor > --- PROPULSION ------- Centrium Heavy Treads Potential Leg Potential Leg > --- UTILITY ---------- Advanced Cooling System Advanced Cooling System Advanced Energy Well Long-range Terrain Scanner Core Analyzer Armor Integrity Analyzer Improved Transmission Jammer Powered Armor Advanced Powered Armor Improved Shield Generator Long-range Tractor Beam > --- WEAPON ----------- Enhanced Autogun Enhanced Autogun Enhanced Autogun Enhanced Autogun > --- INVENTORY -------- Protomatter Advanced Hacking Suite System Backup Module Improved Field Recycling Unit Advanced Variable Charge Gun Rocket Array [Rating: 146] Favorites ----------- Power Antimatter Reactor Engine Heavy Ion Engine Power Core Fission Core Reactor Antimatter Reactor Propulsion Potential Leg Treads Advanced Treads Leg Potential Leg Flight Unit Improved Flight Unit Utility Armor Integrity Analyzer Device Improved Terrain Scanner Storage Advanced Energy Well Processor Armor Integrity Analyzer Hackware Advanced Hacking Suite Protection Powered Armor Weapon Enhanced Autogun Energy Gun Beamcaster Energy Cannon Advanced Beam Cannon Ballistic Gun Enhanced Autogun Ballistic Cannon Advanced Assault Cannon Launcher Missile Launcher Slashing Weapon Phasing Sabre Build | -11 -10 -10 -9 -9 -9 -8 -8 -7 -7 -7 -6 -6 -6 -6 -6 ------- Run | Scr Mat Min Mat Min Exi Min Mat Fac Was Fac Fac Ext Cet Arc Hub Slots Evolved 19 | 3 2 1 3 1 . 1 2 2 1 . 1 1 1 . . Power 3 | . . . . . . 1 . 1 . . . . 1 . . Propulsion 3 | 1 . . 1 . . . . . . . 1 . . . . Utility 10 | 1 1 1 2 1 . . 1 1 1 . . 1 . . . Weapon 3 | 1 1 . . . . . 1 . . . . . . . . Parts Attached 155 | 7 6 5 21 8 2 . 25 16 8 9 16 12 18 1 1 Power 22 | 1 1 . 2 . . . 2 3 2 1 1 4 5 . . Engine 7 | 1 1 . 2 . . . 2 . . . . 1 . . . Core 7 | . . . . . . . . 3 . . 1 3 . . . Reactor 8 | . . . . . . . . . 2 1 . . 5 . . Propulsion 23 | 2 . 2 3 1 2 . 2 . . . 6 2 3 . . Treads 5 | . . . . . . . 1 . . . 3 . 1 . . Leg 17 | 2 . 2 2 1 2 . 1 . . . 3 2 2 . . Wheel . | . . . . . . . . . . . . . . . . Hover . | . . . . . . . . . . . . . . . . Flight 1 | . . . 1 . . . . . . . . . . . . Utility 69 | 2 3 2 10 3 . . 12 9 3 6 9 4 4 1 1 Device 35 | 2 2 1 3 1 . . 4 4 2 6 7 2 1 . . Storage 2 | . . . . . . . . 1 . . . . 1 . . Processor 3 | . 1 . . 1 . . . 1 . . . . . . . Hackware 1 | . . . . . . . . . . . . . . . 1 Protection 28 | . . 1 7 1 . . 8 3 1 . 2 2 2 1 . Artifact . | . . . . . . . . . . . . . . . . Weapon 41 | 2 2 1 6 4 . . 9 4 3 2 . 2 6 . . Energy Gun 6 | . 1 1 1 1 . . 1 . . . . . 1 . . Energy Cannon 4 | . . . 2 1 . . 1 . . . . . . . . Ballistic Gun 17 | 2 1 . 2 . . . 3 . 2 2 . 1 4 . . Ballistic Cannon 6 | . . . . . . . 3 2 1 . . . . . . Launcher 6 | . . . 1 2 . . 1 2 . . . . . . . Special Weapon . | . . . . . . . . . . . . . . . . Impact Weapon . | . . . . . . . . . . . . . . . . Slashing Weapon 2 | . . . . . . . . . . . . 1 1 . . Piercing Weapon . | . . . . . . . . . . . . . . . . Special Melee Weapon . | . . . . . . . . . . . . . . . . Unidentified Prototypes 11 | . . . 4 . . . 1 . 1 . . . 5 . . Parts Lost . | . . . . . . . . . . . . . . . . Power . | . . . . . . . . . . . . . . . . Propulsion . | . . . . . . . . . . . . . . . . Utility . | . . . . . . . . . . . . . . . . Weapon . | . . . . . . . . . . . . . . . . Highest Loss Streak . | . . . . . . . . . . . . . . . . Average Slot Usage (%) 95 | . 99 100 91 98 100 98 97 96 91 90 95 94 96 95 94 Engine 5 | . 13 10 8 7 7 6 10 7 5 5 3 . . . . Core 1 | . . . . . . . . 5 5 . . 3 . . . Reactor 4 | . . . . . . . . . 4 10 9 9 14 17 17 Treads 2 | . . . . . . . . 5 5 5 4 4 2 4 4 Leg 14 | . 27 20 16 22 21 20 16 10 10 10 11 9 12 8 8 Device 25 | . 28 27 19 16 21 20 25 26 26 25 26 31 30 26 26 Processor 6 | . . . . 2 7 6 5 9 10 10 9 9 8 8 8 Protection 12 | . . 9 21 26 21 20 15 8 5 5 7 9 8 8 7 Energy Gun 3 | . 6 16 10 5 7 6 1 . . . . . . . . Energy Cannon 2 | . . . 6 6 7 6 5 . . . . . . . . Ballistic Gun 11 | . 21 15 7 4 . . 5 10 10 19 19 17 17 17 16 Ballistic Cannon 2 | . . . . . . . 7 10 9 . . . . . . Naked Turns . | . . . . . . . . . . . . . . . . Heaviest Build 136 | 8 14 20 50 56 52 52 64 78 126 126 108 102 136 132 132 Greatest Support 105 | 20 20 30 45 45 80 80 83 65 65 65 85 65 105 65 85 Greatest Overweight (x) 2 | . . . 1 1 1 . . 1 1 1 2 1 2 2 2 Average Overweight (x) . | . . . . 1 . . . . 1 1 1 1 1 1 1 Largest Inventory Capacity 6 | 2 2 2 3 4 4 4 5 5 5 5 5 5 6 6 6 Average Capacity 4 | 1 2 2 2 3 4 4 4 5 5 5 5 5 5 6 6 Most Carried 6 | . 2 2 3 4 4 4 5 5 5 5 5 5 6 6 6 Average Carried 4 | . 1 1 2 3 3 4 4 4 4 4 4 4 5 6 5 Final Capacity 6 | 2 2 2 3 4 4 4 5 5 5 5 5 5 6 6 6 Final Carried 6 | . 2 2 3 4 4 4 5 5 5 5 5 5 6 6 5 Class Distribution -------------------- 19% | Generator-Gunner 17% | Scavenger-Skirmisher 15% | Scavenger-Tank 10% | Scavenger-Mutant 9% | Mutant 8% | Skirmisher 6% | Scavenger-Gunner 5% | Gunner 4% | Commander-Gunner Dominant Class ---------------- Mutant | -10/Materials Scavenger-Skirmisher | -10/Mines Scavenger-Tank | -9/Materials Scavenger-Mutant | -9/Mines Mutant | -9/Exiles Skirmisher | -8/Mines Scavenger-Tank | -8/Materials Gunner | -7/Factory Skirmisher | -7/Waste Scavenger-Skirmisher | -7/Factory Scavenger-Gunner | -6/Factory Generator-Gunner | -6/Extension Generator-Gunner | -6/Cetus Generator-Gunner | -6/Archives Generator-Gunner | -6/Hub_04(d) Resources | -11 -10 -10 -9 -9 -9 -8 -8 -7 -7 -7 -6 -6 -6 -6 -6 ----------- Run | Scr Mat Min Mat Min Exi Min Mat Fac Was Fac Fac Ext Cet Arc Hub Matter Collected 7574 | 294 268 158 387 166 . 33 1318 705 621 119 1314 948 596 10 637 Remotely 4379 | 97 268 . . . . . . . 621 57 1169 948 596 10 613 Salvage Created 11630 | 85 502 335 1494 405 . 192 2072 1112 1069 266 1371 1258 293 . 1176 Parts 616 | 6 35 21 87 17 . 7 131 54 7 6 100 65 19 . 61 Haulers Intercepted 10 | . 1 . 4 . . . 3 . . 1 . 1 . . . Recyclers Shooed 8 | 1 1 . . . . . 3 . . . 1 1 . . 1 Parts Field Recycled 50 | . . . . . . . . 8 . 9 29 4 . . . Retrieved Matter 739 | . . . . . . . . 120 . 163 429 27 . . . Parts Self-Destructed . | . . . . . . . . . . . . . . . . Prevented . | . . . . . . . . . . . . . . . . Kills | -11 -10 -10 -9 -9 -9 -8 -8 -7 -7 -7 -6 -6 -6 -6 -6 ------- Run | Scr Mat Min Mat Min Exi Min Mat Fac Was Fac Fac Ext Cet Arc Hub Combat Hostiles Destroyed 210 | . 11 8 24 10 . 4 48 20 6 2 34 19 5 . 19 Guns 137 | . 9 5 17 3 . 1 12 9 2 2 34 19 5 . 19 Cannons 41 | . . . 4 2 . . 27 4 4 . . . . . . AOE 32 | . 2 3 3 5 . 3 9 7 . . . . . . . Classes Destroyed 19 | 2 6 . 2 2 . 1 3 . 1 . 1 1 . . . Worker 11 | . . . 2 1 . . 2 1 . . 2 1 . . 2 Builder 9 | . 1 1 1 . . . 4 1 . . . . . . 1 Tunneler 4 | 1 . . . 2 . 1 . . . . . . . . . Hauler 10 | . 1 . 4 . . . 3 . . 1 . 1 . . . Recycler 12 | 1 . 2 3 2 . . 1 1 . 1 . 1 . . . Operator 5 | . 1 . 2 . . . 2 . . . . . . . . Watcher 6 | . 2 . 2 . . . . 1 . . 1 . . . . Swarmer 49 | . 5 6 11 3 . 3 4 7 . . 7 3 . . . Grunt 91 | . 6 2 6 2 . . 29 8 . 2 13 6 2 . 15 Brawler 5 | . . . . . . . 2 . . . 1 . 1 . 1 Duelist 5 | . . . . . . . 1 1 . . 2 . . . 1 Protector 2 | . . . . . . . 1 1 . . . . . . . Sentry 30 | . . . 7 1 . . 10 2 . . 2 6 . . 2 Demolisher 1 | . . . . 1 . . . . . . . . . . . Hunter 12 | . . . . . . 1 1 1 . . 7 1 1 . . Programmer 3 | . . . . . . . . . . . 2 1 . . . Behemoth 2 | . . . . . . . . . . . . 2 . . . Compactor 6 | . . . . . . . . . 6 . . . . . . Cetus Guard 1 | . . . . . . . . . . . . . 1 . . Assembled 3 | . . . . 3 . . . . . . . . . . . Thug 1 | . . . . . . . . . . . . 1 . . . Butcher 1 | . . . . . . . . . . . . 1 . . . Best Kill Streak 9 | 2 4 6 7 6 . 3 9 5 2 3 7 5 3 . 7 Combat Bots Only 8 | . 4 5 4 5 . 3 8 5 2 1 7 5 3 . 6 Max Kills in Single Turn 4 | 1 3 4 3 3 . 3 2 2 1 1 2 1 1 . 2 Gunslinging 1 | . . 1 1 . . . . . . . 1 . . . . Exploded 3 | . 2 3 3 3 . 3 2 2 . . . . . . . Melee . | . . . . . . . . . . . . . . . . Uniques/NPCs Destroyed 1 | . . . . . . . . . . . . . 1 . . Revision 17 (-6/Cetus) Combat | -11 -10 -10 -9 -9 -9 -8 -8 -7 -7 -7 -6 -6 -6 -6 -6 -------- Run | Scr Mat Min Mat Min Exi Min Mat Fac Was Fac Fac Ext Cet Arc Hub Damage Taken 11064 | . 673 175 506 672 . 92 1370 980 30 250 2154 1688 131 1042 1301 Core 7221 | . 542 124 327 391 . 61 932 646 24 132 1352 1010 92 662 926 Absorbed by Shields 3176 | . . . . . . 35 524 335 10 90 808 493 47 360 474 Reduced by Siege Mode 34 | . . . . . . . . . . . 1 17 . . 16 Redirected to Core 6482 | . 423 107 197 347 . 54 797 573 24 119 1284 1010 92 571 884 Core Remaining (%) 80 | 100 . 100 . . . 24 95 . . 82 . . . . . Volleys Fired 671 | 6 58 18 56 24 . 13 119 64 32 17 117 75 17 . 55 Largest 4 | 2 2 3 3 3 . 2 4 4 4 4 4 4 4 . 4 Hottest 183 | 40 60 80 183 168 . 143 178 146 146 100 100 100 100 . 100 Shots Fired 2164 | 12 109 54 159 50 . 25 367 160 115 68 468 300 68 . 209 Gun 1744 | 12 109 54 116 27 . 12 135 106 60 68 468 300 68 . 209 Cannon 405 | . . . 42 21 . 12 230 45 55 . . . . . . Launcher 15 | . . . 1 2 . 1 2 9 . . . . . . . Special . | . . . . . . . . . . . . . . . . Kinetic 1811 | 12 92 36 43 15 . . 234 151 115 68 468 300 68 . 209 Thermal 258 | . . . 97 33 . 24 104 . . . . . . . . Explosive 6 | . . . 1 2 . 1 2 . . . . . . . . Electromagnetic 89 | . 17 18 18 . . . 27 9 . . . . . . . Robot Hit Streak 45 | 4 6 6 11 15 . 16 15 10 16 10 15 19 16 . 45 Robot Miss Streak 8 | 1 6 8 4 3 . 2 5 3 5 5 7 4 6 . 4 Penetration Max . | . . . . . . . . . . . . . . . . Secondary Targets 20 | . . 2 1 . . . . . . . 5 6 1 . 5 Max Gunslinging Chain 2 | . . 2 1 . . . . . . . 1 1 1 . 1 Shots Hit Robots 1364 | 8 56 25 83 36 . 15 214 94 82 26 297 224 43 . 161 Core Hits 618 | 4 26 18 44 22 . 8 102 60 27 8 112 88 26 . 73 Critical Hits 17 | . . . 3 1 . . 5 1 4 . 1 1 . . 1 Critical Kills 6 | . . . 1 1 . . 2 . 1 . 1 . . . . Critical Parts Destroyed 6 | . . . 2 . . . 3 1 . . . . . . . Melee Attacks 1 | . . . . . . . . . . . . . 1 . . Impact . | . . . . . . . . . . . . . . . . Slashing 1 | . . . . . . . . . . . . . 1 . . Piercing . | . . . . . . . . . . . . . . . . Sneak Attacks . | . . . . . . . . . . . . . . . . Combat Hostiles . | . . . . . . . . . . . . . . . . Follow-up Attacks . | . . . . . . . . . . . . . . . . Damage Inflicted 27705 | 93 719 512 1961 1334 . 468 5579 2551 2103 438 4400 3879 827 . 2841 Guns 19173 | 93 601 360 1257 411 . 213 1687 1354 826 438 4400 3879 827 . 2827 Cannons 5606 | . . . 407 340 . 62 2685 835 1277 . . . . . . Explosions 2906 | . 118 152 297 583 . 193 1207 356 . . . . . . . Melee . | . . . . . . . . . . . . . . . . Ramming 20 | . . . . . . . . 6 . . . . . . 14 Kinetic 20415 | 93 481 208 271 193 . . 2506 2189 2103 438 4400 3879 827 . 2827 Thermal 4734 | . 118 152 1268 558 . 275 2323 40 . . . . . . . Explosive 1283 | . . . 234 583 . 193 273 . . . . . . . . Electromagnetic 1253 | . 120 152 188 . . . 477 316 . . . . . . . Impact . | . . . . . . . . . . . . . . . . Slashing . | . . . . . . . . . . . . . . . . Piercing . | . . . . . . . . . . . . . . . . Highest Corruption 19 | . . . . . . . 5 2 19 19 1 1 . . . Average Corruption 7 | . . . . . . . 3 1 16 18 1 1 . . . Corruption Purged 4 | . . . . . . . . . . 2 1 1 . . . Effects 162 | . . . . . . . 46 7 45 64 . . . . . Message Errors 21 | . . . . . . . 10 1 6 4 . . . . . Matter Fused 18 | . . . . . . . 3 . 4 11 . . . . . Heat Flow Errors 19 | . . . . . . . 7 3 5 4 . . . . . Energy Discharges 11 | . . . . . . . 4 2 1 4 . . . . . Parts Rejected 1 | . . . . . . . . . . 1 . . . . . Data Loss (minor) 12 | . . . . . . . 5 . 2 5 . . . . . Data Loss (major) 1 | . . . . . . . . . . 1 . . . . . Misfires 4 | . . . . . . . 1 . . 3 . . . . . Alerts 2 | . . . . . . . . . . 2 . . . . . Misdirections 16 | . . . . . . . . . 5 11 . . . . . Targeting Errors 47 | . . . . . . . 12 1 19 15 . . . . . Weapon Failures 10 | . . . . . . . 4 . 3 3 . . . . . Overload Shots . | . . . . . . . . . . . . . . . . Overflow Damage 320 | . . . 24 51 . 30 203 9 3 . . . . . . Projectiles 73 | . . . 5 . . 30 26 9 3 . . . . . . Explosions 247 | . . . 19 51 . . 177 . . . . . . . . Melee . | . . . . . . . . . . . . . . . . Knockbacks 24 | . . . . . . . 13 11 . . . . . . . Impact . | . . . . . . . . . . . . . . . . Kinetic 24 | . . . . . . . 13 11 . . . . . . . Secondary . | . . . . . . . . . . . . . . . . Self-Inflicted Damage 468 | . 35 . 51 13 . 33 128 27 . . 181 . . . . Shots 13 | . 1 . 1 1 . 1 5 2 . . 2 . . . . Rammed 1 | . . . . . . . . . . . . . . . 1 Targets Rammed 2 | . . . . . . . . 1 . . . . . . 1 Kicked 1 | . . . . . . . . 1 . . . . . . . Crushed . | . . . . . . . . . . . . . . . . Highest Temperature 419 | . 123 10 396 255 . 60 248 282 419 224 101 108 86 . 88 Average Temperature 77 | . 43 4 86 58 . 22 43 102 172 69 40 47 44 . 44 Received Heat Transfer 2582 | . 231 69 147 111 . . 582 248 . 24 265 337 30 96 442 Effects 6 | . . . . 1 . . . . 5 . . . . . . Shutdowns 3 | . . . . . . . . . 3 . . . . . . Interference 2 | . . . . 1 . . . . 1 . . . . . . Matter Decay 1 | . . . . . . . . . 1 . . . . . . Siege Activations 6 | . . . . . . . . . . . 1 2 1 . 2 Total Turns 133 | . . . . . . . . . . . 20 31 21 . 61 Longest Duration 35 | . . . . . . . . . . . 20 26 21 . 35 Robots Corrupted . | . . . . . . . . . . . . . . . . Combat Hostiles . | . . . . . . . . . . . . . . . . Parts Fried 2 | . 1 . . . . . . 1 . . . . . . . Impact Corruptions . | . . . . . . . . . . . . . . . . Robots Melted . | . . . . . . . . . . . . . . . . Combat Hostiles . | . . . . . . . . . . . . . . . . Parts Melted 7 | . 1 . 1 2 . . 2 . . . . 1 . . . Heat Transferred 7043 | . 200 150 2135 962 . 481 3115 . . . . . . . . Parts Sabotaged 3 | . . . . . . . . . . . . . . . 3 Parts Stolen . | . . . . . . . . . . . . . . . . Parts Stripped . | . . . . . . . . . . . . . . . . Power Chain Reactions 9 | . 2 1 1 . . . 4 1 . . . . . . . Missiles Intercepted . | . . . . . . . . . . . . . . . . Alert | -11 -10 -10 -9 -9 -9 -8 -8 -7 -7 -7 -6 -6 -6 -6 -6 ------- Run | Scr Mat Min Mat Min Exi Min Mat Fac Was Fac Fac Ext Cet Arc Hub Peak Influence 1141 | 10 214 280 552 355 . 139 1092 1093 347 324 1139 1141 1009 365 830 Initial 591 | . 6 72 31 182 . . 53 422 340 242 37 557 591 365 120 Average 443 | 3 115 119 321 215 . 112 597 743 344 212 318 834 804 353 463 Maximum Alert Level 4 | . 1 1 2 1 . . 3 3 1 1 4 4 3 1 3 Low Security (%) 26 | 100 82 77 16 30 . 100 13 . . 33 48 . . . 15 Level 1 27 | . 17 22 46 69 . . 15 . 100 66 21 . . 100 31 Level 2 17 | . . . 37 . . . 29 39 . . 7 18 22 . 19 Level 3 27 | . . . . . . . 40 60 . . 21 72 77 . 33 Level 4 1 | . . . . . . . . . . . . 8 . . . Level 5 . | . . . . . . . . . . . . . . . . High Security . | . . . . . . . . . . . . . . . . Max Security . | . . . . . . . . . . . . . . . . Squads Dispatched 47 | . 3 1 4 . . . 5 12 . 4 6 4 1 . 7 Investigation 21 | . 1 . 3 . . . 2 6 . 3 2 2 1 . 1 Extermination 4 | . . . . . . . . . . 1 2 . . . 1 Reinforcement 10 | . 2 . 1 . . . 2 1 . . 1 1 . . 2 Assault 10 | . . 1 . . . . 1 4 . . 1 1 . . 2 Garrison 2 | . . . . . . . . 1 . . . . . . 1 Intercept . | . . . . . . . . . . . . . . . . Construction Impeded 2 | . . . . . . . 1 1 . . . . . . . Haulers Reinforced 1 | . . . . . . . . . . . . . . . 1 Stealth | -11 -10 -10 -9 -9 -9 -8 -8 -7 -7 -7 -6 -6 -6 -6 -6 --------- Run | Scr Mat Min Mat Min Exi Min Mat Fac Was Fac Fac Ext Cet Arc Hub Distress Signals 16 | . 2 . 3 . . . 3 1 . . 2 . 2 1 2 Communications Jammed 34 | . . . . . . . . . . . . 30 . 1 3 Distress Signals 31 | . . . . . . . . . . . . 30 . 1 . Times Spotted 395 | . 20 11 35 25 . 4 66 52 6 4 48 41 30 26 27 Peak Tracking Total 19 | . 4 4 4 18 . 3 5 13 2 1 7 5 7 19 8 Tactical Retreats 13 | . . . . 1 . . 4 2 . . 2 . 1 2 1 Traps | -11 -10 -10 -9 -9 -9 -8 -8 -7 -7 -7 -6 -6 -6 -6 -6 ------- Run | Scr Mat Min Mat Min Exi Min Mat Fac Was Fac Fac Ext Cet Arc Hub Traps Triggered 9 | . . . . . . . 3 2 . 3 . 1 . . . Indirectly . | . . . . . . . . . . . . . . . . Trap Hack Attempts . | . . . . . . . . . . . . . . . . Triggered . | . . . . . . . . . . . . . . . . Disarmed . | . . . . . . . . . . . . . . . . Reprogrammed . | . . . . . . . . . . . . . . . . Reused . | . . . . . . . . . . . . . . . . Traps Extracted . | . . . . . . . . . . . . . . . . Installed . | . . . . . . . . . . . . . . . . Triggered . | . . . . . . . . . . . . . . . . Machines | -11 -10 -10 -9 -9 -9 -8 -8 -7 -7 -7 -6 -6 -6 -6 -6 ---------- Run | Scr Mat Min Mat Min Exi Min Mat Fac Was Fac Fac Ext Cet Arc Hub Machines Disabled 27 | . 1 . 4 . . 1 8 5 . . 4 . 3 . 1 Max in Single Turn 4 | . 1 . 1 . . 1 2 1 . . 4 . 1 . 1 Garrison Access 6 | . . . . . . . 1 2 . . 1 . . . 2 Machines Sabotaged . | . . . . . . . . . . . . . . . . Garrisons Compromised . | . . . . . . . . . . . . . . . . Overloaded Fab Kills . | . . . . . . . . . . . . . . . . Fab Network Shutdowns 1 | . . . . . . . . . . . 1 . . . . Hacking | -11 -10 -10 -9 -9 -9 -8 -8 -7 -7 -7 -6 -6 -6 -6 -6 --------- Run | Scr Mat Min Mat Min Exi Min Mat Fac Was Fac Fac Ext Cet Arc Hub Machines Accessed 91 | . 6 . 14 . 2 . 16 13 . 6 14 10 4 1 5 Terminals 60 | . 5 . 10 . . . 11 6 . 5 6 10 4 . 3 Fabricators 8 | . . . . . . . . 3 . 1 4 . . . . Repair Stations 5 | . . . 1 . . . 2 . . . 2 . . . . Recycling Units 5 | . 1 . 1 . . . 1 2 . . . . . . . Scanalyzers 5 | . . . 2 . . . 2 . . . 1 . . . . Garrison Access 5 | . . . . . . . . 2 . . 1 . . . 2 Total Hacks 364 | . 23 . 59 . 2 . 74 32 . 24 47 46 13 25 19 Successful 224 | . 13 . 43 . 2 . 52 18 . 7 24 28 3 25 9 Failed 137 | . 9 . 15 . . . 21 14 . 17 23 18 10 . 10 Catastrophic 23 | . . . . . . . 7 2 . 3 4 2 3 . 2 Database Lockouts 3 | . 1 . 1 . . . 1 . . . . . . . . Manual 177 | . 15 . 35 . 1 . 43 10 . 10 16 28 8 1 10 Terminals 265 | . 21 . 47 . . . 62 16 . 21 24 46 13 . 15 Fabricators 25 | . . . . . . . . 8 . 3 14 . . . . Repair Stations 12 | . . . 2 . . . 5 . . . 5 . . . . Recycling Units 12 | . 2 . 2 . . . 3 5 . . . . . . . Scanalyzers 14 | . . . 8 . . . 4 . . . 2 . . . . Garrison Access 9 | . . . . . . . . 3 . . 2 . . . 4 Terminal Hacks 106 | . 5 . 17 . 2 . 22 5 . 3 6 14 3 25 4 Record 27 | . . . 1 . 1 . . . . . . . . 25 . Part Schematic 12 | . . . . . . . 2 4 . 3 3 . . . . Robot Schematic 1 | . . . 1 . . . . . . . . . . . . Robot Analysis 9 | . 1 . 6 . . . 2 . . . . . . . . Prototype ID Bank 7 | . . . 2 . . . 4 . . . 1 . . . . Open Door 8 | . . . . . . . . . . . . 7 1 . . Level Access Points 1 | . . . . . . . . . . . . . . . 1 Branch Access Points 3 | . . . 2 . . . 1 . . . . . . . . Terminal Index 3 | . . . . . . . 1 . . . . 1 . . 1 Garrison Index 1 | . . . . . . . . . . . . . . . 1 Alert Level 2 | . . . . . . . 1 . . . . 1 . . . Unreport Threat 6 | . . . . . . . 3 . . . . 2 1 . . Locate Traps 8 | . 1 . . . . . 2 1 . . 2 1 . . 1 Recall Investigation 1 | . . . . . . . . . . . . . 1 . . Recall Assault 1 | . . . . . . . . . . . . 1 . . . Hauler Manifests 3 | . 1 . . . . . 1 . . . . 1 . . . Registered Components 2 | . . . 1 . . . 1 . . . . . . . . Zone Layout 10 | . 2 . 4 . . . 4 . . . . . . . . EX-Prototype ID Bank 1 | . . . . . 1 . . . . . . . . . . Fabricator Hacks 8 | . . . . . . . . 3 . . 5 . . . . Load Schematic 3 | . . . . . . . . 2 . . 1 . . . . Build 5 | . . . . . . . . 1 . . 4 . . . . Repair Station Hacks 8 | . . . 2 . . . 4 . . . 2 . . . . Scan Component 4 | . . . 1 . . . 2 . . . 1 . . . . Repair 4 | . . . 1 . . . 2 . . . 1 . . . . Recycling Unit Hacks 6 | . 1 . 2 . . . 1 2 . . . . . . . Report Inventory 5 | . 1 . 1 . . . 1 2 . . . . . . . Retrieve Components 1 | . . . 1 . . . . . . . . . . . . Scanalyzer 12 | . . . 7 . . . 4 . . . 1 . . . . Insert Component 6 | . . . 3 . . . 2 . . . 1 . . . . Analyze 6 | . . . 4 . . . 2 . . . . . . . . Garrison Access Hacks 4 | . . . . . . . . 2 . . 1 . . . 1 Seal Access 4 | . . . . . . . . 2 . . 1 . . . 1 Unauthorized Hacks 80 | . 7 . 15 . . . 21 6 . 4 9 14 . . 4 Terminals 72 | . 6 . 15 . . . 20 4 . 4 6 14 . . 3 Track 37 | . 4 . 8 . . . 9 2 . 3 3 7 . . 1 Assimilate 2 | . . . . . . . 2 . . . . . . . . Botnet 28 | . 1 . 6 . . . 9 2 . 1 2 6 . . 1 Operators 5 | . 1 . 1 . . . . . . . 1 1 . . 1 Fabricators 3 | . . . . . . . . . . . 3 . . . . Report 3 | . . . . . . . . . . . 3 . . . . Repair Stations . | . . . . . . . . . . . . . . . . Recycling Units 4 | . 1 . . . . . 1 2 . . . . . . . Tunnel 4 | . 1 . . . . . 1 2 . . . . . . . Scanalyzers . | . . . . . . . . . . . . . . . . Garrison Access 1 | . . . . . . . . . . . . . . . 1 Jam 1 | . . . . . . . . . . . . . . . 1 Data Cores Recovered 3 | . . . 1 . . . 2 . . . . . . . . Used 2 | . . . . . . . 2 . . . . . . . . Hacking Detections 73 | . 5 . 11 . . . 13 10 . 6 10 10 4 . 4 Full Trace Events 20 | . 2 . 4 . . . 2 4 . 3 2 2 1 . . Feedback Events 3 | . . . . . . . . 2 . . 1 . . . . Corruption 3 | . . . . . . . . 2 . . 1 . . . . Feedback Blocked . | . . . . . . . . . . . . . . . . Robot Schematics Acquired 1 | . . . 1 . . . . . . . . . . . . Robots Built . | . . . . . . . . . . . . . . . . Matter . | . . . . . . . . . . . . . . . . Time . | . . . . . . . . . . . . . . . . Total Robot Build Rating . | . . . . . . . . . . . . . . . . Part Schematics Acquired 17 | . . . 3 . . . 4 4 . 3 3 . . . . Parts Built 8 | . . . . . . . . 1 . . 7 . . . . Matter 1016 | . . . . . . . . 146 . . 870 . . . . Time 295 | . . . . . . . . 36 . . 259 . . . . Total Part Build Rating 47 | . . . . . . . . 3 . . 44 . . . . Parts Repaired 4 | . . . 1 . . . 2 . . . 1 . . . . Time 156 | . . . 38 . . . 57 . . . 61 . . . . Parts Recycled . | . . . . . . . . . . . . . . . . Recycled Matter . | . . . . . . . . . . . . . . . . Retrieved Matter . | . . . . . . . . . . . . . . . . Retrieved Components 9 | . . . 9 . . . . . . . . . . . . Parts Scanalyzed 6 | . . . 3 . . . 2 . . . 1 . . . . Part Schematics Acquired 5 | . . . 3 . . . 2 . . . . . . . . Parts Damaged . | . . . . . . . . . . . . . . . . Bothacking | -11 -10 -10 -9 -9 -9 -8 -8 -7 -7 -7 -6 -6 -6 -6 -6 ------------ Run | Scr Mat Min Mat Min Exi Min Mat Fac Was Fac Fac Ext Cet Arc Hub Used RIF Installer . | . . . . . . . . . . . . . . . . Robots Hacked . | . . . . . . . . . . . . . . . . Non-combat . | . . . . . . . . . . . . . . . . Combat . | . . . . . . . . . . . . . . . . Robot Hacks Applied . | . . . . . . . . . . . . . . . . Relay Couplers Released 1 | . . . . . . . 1 . . . . . . . . Machine Destruction 1 | . . . . . . . 1 . . . . . . . . Robots Rewired 25 | . . . . . . . . . . . . 25 . . . Allies Hacked . | . . . . . . . . . . . . . . . . Hacks Repelled . | . . . . . . . . . . . . . . . . Allies | -11 -10 -10 -9 -9 -9 -8 -8 -7 -7 -7 -6 -6 -6 -6 -6 -------- Run | Scr Mat Min Mat Min Exi Min Mat Fac Was Fac Fac Ext Cet Arc Hub Total Allies 41 | . . 1 . 3 . . 2 3 . . . 32 . . . Largest Group 21 | . . 1 . 2 2 . 1 3 . . . 21 18 1 . Highest-Rated Group 734 | . . 31 . 51 51 . 10 93 . . . 734 646 26 . Highest-Rated Ally 156 | . . 31 . 31 31 . 10 31 . . . 156 156 26 . Total Orders . | . . . . . . . . . . . . . . . . Ally Attacks 373 | . . 3 . 34 . . . 42 . . . 158 136 . . Total Damage 8185 | . . 43 . 594 . . . 745 . . . 3786 3017 . . Kills 70 | . . 1 . 10 . . . 9 . . . 25 25 . . Allies Corrupted 1 | . . . . . . . . . . . . 1 . . . Allies Melted . | . . . . . . . . . . . . . . . . Intel | -11 -10 -10 -9 -9 -9 -8 -8 -7 -7 -7 -6 -6 -6 -6 -6 ------- Run | Scr Mat Min Mat Min Exi Min Mat Fac Was Fac Fac Ext Cet Arc Hub Robot Analysis Total 9 | . 1 . 6 . . . 2 . . . . . . . . Derelict Logs Recovered 4 | . . 3 . 1 . . . . . . . . . . . Drone Launches . | . . . . . . . . . . . . . . . . Drone Recoveries . | . . . . . . . . . . . . . . . . Exploration | -11 -10 -10 -9 -9 -9 -8 -8 -7 -7 -7 -6 -6 -6 -6 -6 ------------- Run | Scr Mat Min Mat Min Exi Min Mat Fac Was Fac Fac Ext Cet Arc Hub Turns Passed 14540 | 72 672 756 1686 1117 823 347 1745 1290 379 912 1802 1607 758 166 408 Spaces Moved 7861 | 40 387 537 955 665 286 298 1043 955 206 623 658 609 366 105 128 Core 4 | 4 . . . . . . . . . . . . . . . Treads 365 | . . . . . . . . . . . 22 288 1 . 54 Legs 7492 | 36 387 537 955 665 286 298 1043 955 206 623 636 321 365 105 74 Wheels . | . . . . . . . . . . . . . . . . Hover . | . . . . . . . . . . . . . . . . Flight . | . . . . . . . . . . . . . . . . Fastest Speed 50 | 50 120 120 120 150 100 100 90 90 85 130 130 130 130 125 130 Average Speed 127 | 113 120 120 146 150 130 100 97 103 128 130 134 158 140 147 157 Slowest Speed 190 | 120 120 120 150 150 150 100 100 130 130 130 190 190 190 170 180 Overloaded Moves 19 | . . . . . . . . . 7 . . . . 12 . Propulsion Burnouts . | . . . . . . . . . . . . . . . . Robots Hopped . | . . . . . . . . . . . . . . . . Cave-ins Triggered . | . . . . . . . . . . . . . . . . Exploration Rate (%) 63 | 4 70 91 88 98 70 77 93 27 92 18 17 78 81 91 20 Regions Visited 15 Branch Regions 8 Pre-discovered Areas 9 | . 1 3 . 1 1 . 1 2 . . . . . . . Known Exits Taken 2 | . . 1 1 . . . . . . . . . . . . Unknown Exits Taken 11 | 1 1 . . 1 1 1 1 . . 1 1 1 1 1 . Scrap Searched 3 | . . 2 . 1 . . . . . . . . . . . Spaces Dug 26 | . . . 4 . . . 20 2 . . . . . . . Terrain Destroyed 228 | . 8 2 10 23 . 14 112 18 7 . 34 . . . . Melee . | . . . . . . . . . . . . . . . . Projectile 88 | . . . . . . . 65 16 7 . . . . . . AOE 140 | . 8 2 10 23 . 14 47 2 . . 34 . . . . Terrain Rammed . | . . . . . . . . . . . . . . . . Walls Destroyed . | . . . . . . . . . . . . . . . . Machines Disabled . | . . . . . . . . . . . . . . . . Actions | -11 -10 -10 -9 -9 -9 -8 -8 -7 -7 -7 -6 -6 -6 -6 -6 --------- Run | Scr Mat Min Mat Min Exi Min Mat Fac Was Fac Fac Ext Cet Arc Hub Total 11422 | 52 492 610 1127 739 737 321 1549 1171 267 706 1473 1186 594 116 282 Wait 1925 | . 21 22 63 34 446 10 270 86 1 50 579 116 148 10 69 Move 7847 | 39 386 536 954 664 285 297 1042 955 205 622 657 608 365 104 128 Hop . | . . . . . . . . . . . . . . . . Pick Up 44 | . 4 2 5 2 1 . 7 5 2 2 7 5 2 . . Fast Attach 83 | 7 2 2 12 3 2 . 12 5 5 5 5 8 14 1 . Attach 12 | . 2 1 2 . . . 2 1 1 . 2 1 . . . Detach 6 | . . . 1 . . . 2 . 1 . . 1 1 . . Swap 60 | . 2 2 7 5 . . 11 10 2 4 9 3 4 . 1 Drop 118 | . 3 5 16 4 3 . 20 12 6 6 13 12 16 1 1 Fire 671 | 6 58 18 56 24 . 13 119 64 32 17 117 75 17 . 55 Melee 1 | . . . . . . . . . . . . . 1 . . Ram . | . . . . . . . . . . . . . . . . Kick 1 | . . . . . . . . 1 . . . . . . . Crush 1 | . . . . . . . . . . . . . . . 1 Escape Stasis 2 | . . . . . . . . . . . . 2 . . . Rewire 261 | . . . . . . 1 . . . . . 260 . . . Trap . | . . . . . . . . . . . . . . . . Miscellaneous 390 | . 14 22 11 3 . . 64 32 12 . 84 95 26 . 27 Route ------- -11/Scrapyard -10/Materials (discovered 3 exits: *Mat x2 / [*Min]) -10/Mines (discovered 2 exits: *Mat x2) -9/Materials (discovered 4 exits: *Mat x3 / *Min) -9/Mines (discovered 3 exits: *Mat x2 / *Exi) -9/Exiles (discovered 2 exits: [*Min x2]) -8/Mines (discovered 2 exits: *Mat x2) -8/Materials (discovered 3 exits: *Fac x3) -7/Factory -7/Waste -7/Factory -6/Factory (discovered 2 exits: *Fac / *Ext) -6/Extension (discovered 3 exits: *Fac x2 / *Cet) -6/Cetus (discovered 2 exits: *Fac / *Arc) -6/Archives (discovered 3 exits: *Fac / *Hub x2) -6/Hub_04(d) (discovered 4 exits: *Fac x4) History --------- Turn | Location | Event 3 | -11/Scrapyard | Discovered new exit (range 15) 5 | -11/Scrapyard | Upgraded with Propulsion slot (x1) 5 | -11/Scrapyard | Upgraded with Utility slot (x1) 5 | -11/Scrapyard | Upgraded with Weapon slot (x1) 73 | -11/Scrapyard | Entered Materials 323 | -10/Materials | Build established: Mutant 329 | -10/Materials | Central database locked down 329 | -10/Materials | Discovered new exit (range 7) 452 | -10/Materials | Discovered new exit (range 16) 472 | -10/Materials | Identified exit to Materials 661 | -10/Materials | Reached level 2 670 | -10/Materials | Upgraded with Utility slot (x1) 670 | -10/Materials | Upgraded with Weapon slot (x1) 702 | -10/Materials | Discovered new exit (range 9) 745 | -10/Materials | Entered Mines 793 | -10/Mines | Learned location of Mines (-8) 819 | -10/Mines | Discovered exit to Materials (range 10) 824 | -10/Mines | Met a Derelict testing a Signal Generator 838 | -10/Mines | Found Signal Generator 897 | -10/Mines | Learned location of Zion (-6) 950 | -10/Mines | Core integrity fell below 50% 1035 | -10/Mines | Reached level 3 1061 | -10/Mines | Upgraded with Utility slot (x1) 1085 | -10/Mines | Discovered exit to Materials (range 15) 1207 | -10/Mines | Received a Rocket Launcher from a helpful Derelict 1326 | -10/Mines | Build established: Scavenger-Skirmisher 1501 | -10/Mines | Entered Materials 1503 | -9/Materials | Reached level 4 1505 | -9/Materials | Upgraded with Propulsion slot (x1) 1735 | -9/Materials | Identified exit to Mines 1839 | -9/Materials | Reached level 5 1851 | -9/Materials | Upgraded with Utility slot (x1) 1869 | -9/Materials | Discovered new exit (range 10) 2077 | -9/Materials | Build established: Scavenger-Tank 2218 | -9/Materials | Repaired Carbon-fiber Leg 2606 | -9/Materials | Discovered new exit (range 17) 2810 | -9/Materials | Reached level 6 2839 | -9/Materials | Upgraded with Utility slot (x1) 2921 | -9/Materials | Discovered new exit (range 16) 2949 | -9/Materials | Central database locked down 3187 | -9/Materials | Entered Mines 3190 | -9/Mines | Received a Mining Laser from a helpful Derelict 3340 | -9/Mines | Assembled infested the area 3379 | -9/Mines | Reached level 7 3408 | -9/Mines | Discovered new exit (range 16) 3551 | -9/Mines | Deemed a non-threat by the Exiles lab entrance 3551 | -9/Mines | Discovered new exit (range 5) 3698 | -9/Mines | Build established: Scavenger-Mutant 3745 | -9/Mines | Core integrity fell below 50% 3748 | -9/Mines | Reached level 8 3764 | -9/Mines | Upgraded with Utility slot (x1) 3793 | -9/Mines | Discovered new exit (range 11) 4304 | -9/Mines | Entered Exiles 4304 | -9/Exiles | Accompanied by 2 allies 4324 | -9/Exiles | Discovered new exit (range 16) 4334 | -9/Exiles | Led the pair of lost Derelicts to a safe place 4345 | -9/Exiles | Met 8R-AWN 4367 | -9/Exiles | Met EX-HEX 4421 | -9/Exiles | Met EX-DEC 4487 | -9/Exiles | Met EX-BIN 4510 | -9/Exiles | Aligned with FarCom system 4511 | -9/Exiles | Given EX-Vault access code 4552 | -9/Exiles | Opened EX-Vault 4563 | -9/Exiles | Found Potential Leg 4566 | -9/Exiles | Found Potential Leg 4590 | -9/Exiles | Warned to stay clear of 0b10 Research branches 4863 | -9/Exiles | Build established: Mutant 5115 | -9/Exiles | Discovered new exit (range 14) 5127 | -9/Exiles | Left Exiles lab with Potential Leg 5127 | -9/Exiles | Entered Mines 5236 | -8/Mines | Discovered new exit (range 13) 5386 | -8/Mines | Reached level 9 5397 | -8/Mines | Upgraded with Power slot (x1) 5433 | -8/Mines | Build established: Skirmisher 5437 | -8/Mines | Discovered new exit (range 6) 5474 | -8/Mines | Entered Materials 5475 | -8/Materials | Core integrity fell below 50% 5476 | -8/Materials | Reached level 10 5510 | -8/Materials | Upgraded with Utility slot (x1) 5708 | -8/Materials | Discovered new exit (range 13) 5863 | -8/Materials | Reached level 11 6280 | -8/Materials | Build established: Scavenger-Tank 6308 | -8/Materials | Reached level 12 6311 | -8/Materials | Upgraded with Weapon slot (x1) 6343 | -8/Materials | Discovered new exit (range 11) 6414 | -8/Materials | Repaired Shield Generator 6556 | -8/Materials | Destroyed 8 combat bots 6822 | -8/Materials | Reached level 13 6934 | -8/Materials | Discovered new exit (range 10) 6971 | -8/Materials | Repaired Lgt. Angular Momentum Engine 7136 | -8/Materials | Central database locked down 7219 | -8/Materials | Entered Factory 7219 | -7/Factory | Accompanied by 1 ally 7221 | -7/Factory | Reached level 14 7221 | -7/Factory | Upgraded with Utility slot (x1) 7280 | -7/Factory | Build established: Scavenger-Skirmisher 7619 | -7/Factory | First assault squad dispatched 7639 | -7/Factory | Garrison activated, responded to threat 7641 | -7/Factory | Reached level 15 7647 | -7/Factory | Upgraded with Power slot (x1) 7749 | -7/Factory | Core integrity fell below 50% 7872 | -7/Factory | Allied Derelicts emerged from ambush trap array 7949 | -7/Factory | Fabricated Hvy. Armor Plating (x1) 8282 | -7/Factory | Build established: Gunner 8347 | -7/Factory | Discovered new exit (range 10) 8393 | -7/Factory | Reached level 16 8458 | -7/Factory | Found Rocket Array 8509 | -7/Factory | Sucked down chute 8509 | -7/Factory | Entered Waste 8522 | -7/Waste | Upgraded with Utility slot (x1) 8524 | -7/Waste | EMP discharged 8524 | -7/Waste | System corruption reached 10% 8526 | -7/Waste | Spotted C-40 Crusher 8549 | -7/Waste | Spotted C-40 Crusher 8559 | -7/Waste | Destroyed C-40 Crusher 8574 | -7/Waste | Crushed by Compactor (0 parts destroyed, 1 dropped) 8576 | -7/Waste | Destroyed C-40 Crusher 8610 | -7/Waste | Spotted C-40 Crusher 8616 | -7/Waste | Destroyed C-40 Crusher 8620 | -7/Waste | Spotted C-40 Crusher 8624 | -7/Waste | EMP discharged 8633 | -7/Waste | Found Damper Plating 8681 | -7/Waste | Destroyed C-40 Crusher 8724 | -7/Waste | EMP discharged 8735 | -7/Waste | Spotted C-40 Crusher 8739 | -7/Waste | Spotted C-40 Crusher 8782 | -7/Waste | Destroyed C-40 Crusher 8790 | -7/Waste | Destroyed C-40 Crusher 8824 | -7/Waste | EMP discharged 8852 | -7/Waste | Discovered new exit (range 22) 8888 | -7/Waste | Entered Factory 9125 | -7/Factory | Build established: Scavenger-Skirmisher 9553 | -7/Factory | Discovered new exit (range 5) 9800 | -7/Factory | Entered another Factory area 9802 | -6/Factory | Reached level 17 9817 | -6/Factory | Upgraded with Propulsion slot (x1) 10113 | -6/Factory | Build established: Scavenger-Gunner 10172 | -6/Factory | Fabricated Powered Armor (x2) 10769 | -6/Factory | Fabricated Adv. Cooling System (x1) 10802 | -6/Factory | Reached level 18 10931 | -6/Factory | Fabricated Adv. Medium Treads (x2) 10957 | -6/Factory | Fabricated Arm. Heavy Treads (x2) 11090 | -6/Factory | Destroyed 7 combat bots 11177 | -6/Factory | Repaired Broken System Backup Module 11209 | -6/Factory | Local fabrication network quarantined 11282 | -6/Factory | Build established: Generator-Gunner 11347 | -6/Factory | Discovered new exit (range 21) 11512 | -6/Factory | Discovered new exit (range 19) 11550 | -6/Factory | First assault squad dispatched 11572 | -6/Factory | Reached level 19 11602 | -6/Factory | Entered Extension 11602 | -6/Extension | Upgraded with Utility slot (x1) 12072 | -6/Extension | P-60 Hacker assimilated allied KJ-ZSM(g) 12147 | -6/Extension | Discovered new exit (range 24) 12154 | -6/Extension | Build established: Commander-Gunner 12158 | -6/Extension | Spotted B-75 Beast 12167 | -6/Extension | Spotted B-75 Beast 12185 | -6/Extension | Core integrity fell below 50% 12192 | -6/Extension | Destroyed B-75 Beast 12195 | -6/Extension | Core integrity fell below 20% 12203 | -6/Extension | Reached level 20 12203 | -6/Extension | Destroyed B-75 Beast 12277 | -6/Extension | Disrupted transfer network 12302 | -6/Extension | First assault squad dispatched 12366 | -6/Extension | Rescued a captive Derelict 12461 | -6/Extension | Rescued A7 12465 | -6/Extension | Build established: Generator-Gunner 12571 | -6/Extension | Rescued a captive Derelict 12613 | -6/Extension | Rescued a captive Derelict 12737 | -6/Extension | Rescued a captive Derelict 12738 | -6/Extension | Rescued a captive Derelict 12767 | -6/Extension | Rescued a captive Derelict 13118 | -6/Extension | Discovered new exit (range 23) 13125 | -6/Extension | Discovered new exit (range 22) 13209 | -6/Extension | Entered Cetus 13209 | -6/Cetus | Accompanied by 18 allies (A7) 13214 | -6/Cetus | Acquired a Cetus Manufacturing Module code from A7 13218 | -6/Cetus | Build established: Commander-Gunner 13225 | -6/Cetus | Spotted Cetus Guard 13225 | -6/Cetus | Spotted Cetus Guard 13230 | -6/Cetus | Spotted Cetus Guard 13234 | -6/Cetus | Spotted Cetus Guard 13245 | -6/Cetus | Allies destroyed Cetus Guard 13247 | -6/Cetus | Destroyed Cetus Guard 13250 | -6/Cetus | Allies destroyed Cetus Guard 13311 | -6/Cetus | Cetus Manufacturing Module disabled 13313 | -6/Cetus | Reached level 21 13390 | -6/Cetus | Escorted A7 to Cetus Mainframe 13518 | -6/Cetus | Discovered new exit (range 16) 13580 | -6/Cetus | Spotted Cetus Guard 13580 | -6/Cetus | Spotted Cetus Guard 13581 | -6/Cetus | Allies destroyed Cetus Guard 13592 | -6/Cetus | Spotted Cetus Guard 13592 | -6/Cetus | Spotted Cetus Guard 13593 | -6/Cetus | Build established: Generator-Gunner 13593 | -6/Cetus | Discovered new exit (range 24) 13598 | -6/Cetus | Allies destroyed Cetus Guard 13604 | -6/Cetus | Allies destroyed Cetus Guard 13610 | -6/Cetus | Allies destroyed Cetus Guard 13625 | -6/Cetus | Met Revision 17 13695 | -6/Cetus | Upgraded with Power slot (x1) 13853 | -6/Cetus | Extracted ID and sensor layout for unrecognized location from A7's data core 13900 | -6/Cetus | Destroyed Revision 17 13967 | -6/Cetus | Entered Archives 13967 | -6/Archives | Accompanied by 1 ally 13976 | -6/Archives | Discovered new exit (range 24) 13983 | -6/Archives | Met Zhirov 13987 | -6/Archives | Discovered new exit (range 24) 13989 | -6/Archives | Reinforcements dispatched to Archives 13997 | -6/Archives | Read partially decrypted archive contents 14034 | -6/Archives | Reinforcements dispatched to Archives 14036 | -6/Archives | Zhirov warped through subspace 14038 | -6/Archives | Found Adv. Powered Armor 14054 | -6/Archives | Zhirov detonated Archives 14085 | -6/Archives | Discovered new exit (range 16) 14133 | -6/Archives | Entered Hub_04(d) 14173 | -6/Hub_04(d) | Discovered new exit (range 21) 14244 | -6/Hub_04(d) | Identified exit to Factory 14266 | -6/Hub_04(d) | Garrison activated, responded to threat 14483 | -6/Hub_04(d) | First assault squad dispatched 14541 | -6/Hub_04(d) | Destroyed by G-50 Soldier with Heavy Laser Last Messages --------------- 14524_ M-28 Smith fits Backup Laser III on G-50 Soldier. 14525_ K-01 Serf collects debris. 14526_ Acquired 9 matter. 14527_ Upgraded: Core Integrity (+200) 14527_ G-67 Veteran destroyed. 14528_ Acquired 9 matter. 14529_ G-50 Soldier destroyed. 14530_ Acquired 9 matter. 14530_ K-01 Serf collects debris. 14532_ Acquired 9 matter. 14533_ ALERT: Rogue bot located, Programmers report to Hub_04(d) Zone 6O. 14533_ K-01 Serf collects debris. 14534_ Acquired 9 matter. 14536_ K-01 Serf collects debris. 14537_ G-67 Veteran destroyed. 14537_ Switching to secondary target: G-50 Soldier. 14538_ Acquired 2 matter. 14538_ Acquired 7 matter. 14539_ K-01 Serf collects debris. 14540_ Acquired 9 matter. Map ----- +----------------------------------------------------+ | ????????#?????#??#???????????????????????????????? | | ????????#??#?#??#?##?#??#?#?????????? ???????????# | | ???????####?###??##############?#????? ? ? ??##### | | ???#?##?#?###?#########?#############??+?###? | | ???#???###############################??#### ? " | | ???#?######??########################## #### ?" | | #??#?#?################################ #### """ | | ###???################################# ###? """" | | ?##?#?################################# #### ?""" | | #??#################################### #### ? "" | | ####################################### + " | | #??#?#?#######?######################## #### | | ?###?##?############################### #### | | #?################################## #########+ | | ?###?################## # ##+######### | | #########?############# # # ###### | | ################ # """" """" # # " " ###### | | ################ = # """" """" # # " " ###### | | ################ # """" """" # # " " ###### | | #### ## + """" """" # # ##### | | ?### ## #g # # ##### | | #### " ## # """=="""" # # ##### | | #### """ ###+##### !=[%%="""" # ########### | | #### """"" + ### ! %*!!"""" # ##### ### | | #### """"""" + ###[==/!gm"""" #=#####! = ! | | #### """"" #### T#!!@%k%%% #*[p== =! * =% | | #### """ #### ""#####/######## #####! = !% | | #### " #### ##### ####### ##### ### | | #### #### % ###### #### | | #### #### % %**######### #### | | ################## ###### ##+########### #### | | ##################+####### ##=*! ] ###### #### | | #### # ## [ ###### #### | | ?### """ """ """ """ """ + ## " " ###### #### | | #### # ## ""G"" ###### #### | | #### """ """ """ """ """ # ## ###### #### | | #### # ############### #### | | #### """ """ """ """ """ # ## # #### | | ##?#? """G""" # ## """" # #### | | #####+##+################# ## """" # #### | | ##### ################# ## """" # #### | | ###?# ######### ###[ # """" ""# o# | | ##### Y T # ""# / | | ##### ? < "" + """" ""# ? | | ##?###### ######## ### # """" T# # | | #??#?#?## ######### ######### """" ""# | | #????####+######### # # """" ""# | | ?#### ? ? # + # ""# | | #?#?? """ """ """ # # # # | | ??#?# # # #### ######### ?#?? | +----------------------------------------------------+ Best States ------------- Heat Dissipation 105 Energy Generation 85 Energy Capacity 1900 Matter Stores 438 Matter Capacity 450 Sight Range 17 Terrain Scan Range 24 Terrain Scan Density 410 Jamming Range 12 Heat Shielding 75 Armor Coverage 1600 Resistance: KI 20 Resistance: TH 10 Resistance: EM 90 Evasion (%) 42 Core Analysis 6 Armor Integrity Analysis 33 Recoil Reduction 2 Matter Filtering 30 Kinecelleration 30 Offensive Hacking 19 Defensive Hacking 5 Item Schematics ----------------- Beamcaster | -9/Materials | Scanalyzed Minigun | -9/Materials | Scanalyzed Missile Launcher | -9/Materials | Scanalyzed Spread Laser | -8/Materials | Scanalyzed Reactive Plating | -8/Materials | Scanalyzed Lrn. Tractor Beam | -8/Materials | Hacked Hvy. Armor Plating | -8/Materials | Hacked Imp. Field Recycling Unit | -7/Factory | Hacked Powered Armor | -7/Factory | Hacked Tiamat Missile Launcher | -7/Factory | Hacked Imp. System Backup Module | -7/Factory | Hacked Adv. Cooling System | -7/Factory | Hacked Variable Charge Gun | -7/Factory | Hacked Imp. Thermal Shield | -7/Factory | Hacked Adv. System Shield | -6/Factory | Hacked Proton Cannon | -6/Factory | Hacked Imp. Armor Integrity Analyzer | -6/Factory | Hacked Robot Schematics ------------------ M-13 Machinist | -9/Materials | Hacked Fabricated ------------ Hvy. Armor Plating | x1 | -7/Factory Powered Armor | x2 | -6/Factory Adv. Cooling System | x1 | -6/Factory | Preloaded Adv. Medium Treads | x2 | -6/Factory | Preloaded Arm. Heavy Treads | x2 | -6/Factory | Preloaded Alien Tech Used ----------------- None Achievements -------------- None Challenges ------------ None RPGLIKE | -11 -10 -10 -9 -9 -9 -8 -8 -7 -7 -7 -6 -6 -6 -6 -6 --------- Run | Scr Mat Min Mat Min Exi Min Mat Fac Was Fac Fac Ext Cet Arc Hub Levels Raised 20 | . 1 1 3 2 . 1 4 3 . . 3 1 1 . . XP Earned 34413 | 3000 1760 1577 5140 2354 243 1075 6210 4243 67 245 4207 2288 1156 128 720 XP Spent 32880 | 2800 1600 1240 4845 3000 . 500 4820 3700 2900 . 1300 3255 2600 . 320 Upgrades 45 | 9 2 3 7 2 . 1 6 4 1 . 2 2 2 . 4 Power Slot 3 | . . . . . . 1 . 1 . . . . 1 . . Propulsion Slot 3 | 1 . . 1 . . . . . . . 1 . . . . Utility Slot 10 | 1 1 1 2 1 . . 1 1 1 . . 1 . . . Weapon Slot 3 | 1 1 . . . . . 1 . . . . . . . . Core Integrity 8 | . . . 1 . . . 2 . . . . 1 . . 4 Heat Dissipation 3 | . . 1 1 . . . 1 . . . . . . . . Mass Support 1 | . . . 1 . . . . . . . . . . . . Inventory Capacity 6 | 2 . . 1 1 . . 1 . . . . . 1 . . Sight Range 1 | 1 . . . . . . . . . . . . . . . Terrain Scan Density 4 | 1 . 1 . . . . . 2 . . . . . . . Hack Attack % 1 | 1 . . . . . . . . . . . . . . . Hack Defense % 1 | 1 . . . . . . . . . . . . . . . KI Damage % 1 | . . . . . . . . . . . 1 . . . . Protomatter Created 2728 | . 91 54 76 52 . . 570 72 267 . 723 396 115 . 312 Integrity Restored 8135 | . 272 468 234 54 . . 1397 662 254 . 1749 1975 482 . 588 Core 6221 | . 246 420 234 54 . . 1388 602 103 . 1201 1293 92 . 588 Parts 1914 | . 26 48 . . . . 9 60 151 . 548 682 390 . . Protomatter Decayed 1224 | . . . 112 46 . . 37 . . . 97 207 669 56 . Game ------ Seed GaussFlightThruster Manual? 0 Play Time 02:43:08 Cumulative 288.6 hours Start 2020.09.28 @ 03:07:00 End 2020.09.29 @ 11:44:18 Sessions 5 Manual Loads 0 Difficulty Rogue Special Mode Winter2019/RPGLIKE Game No. 115 Rogue 115 Adventurer 0 Explorer 0 Win Type - Total 4 Types 3/0/0/1/0/0/0/0/0 Lore% 83 Gallery% 89 Achievement% 70 Wizard Run 0 Options --------- ASCII 0 Keyboard 0 Movement Numpad Keybinds 0 Fullscreen 1 Font 18/SmallcapsGlow Map View 76x50 Tactical HUD 1 Map Filters NONE Filters NONE Steam 1 RUN: ae2c7266-3907-40d7-995f-f9fb95d4c2d6